[Event "*** Titled Tuesday Blitz"]
[Site "Chess.com"]
[Date "2020.05.19"]
[Round "10"]
[White "Unknown_IM"]
[Black "vanea_03"]
[Result "0-1"]
[WhiteElo "2543"]
[BlackElo "2643"]
[TimeControl "180+1"]
[EndTime "13:56:05 PDT"]
[Termination "vanea_03 won by resignation"]

1. e4 {[%clk 0:03:00.9]} 1... e5 {[%clk 0:03:00.4]} 2. Nf3 {[%clk 0:02:57.2]}
2... Nc6 {[%clk 0:03:00.9]} 3. Bc4 {[%clk 0:02:53.3]} 3... Nf6 {[%clk
0:03:00.6]} 4. d4 {[%clk 0:02:52.6]} 4... exd4 {[%clk 0:02:56.2]} 5. O-O {[%clk
0:02:52.1]} 5... Nxe4 {[%clk 0:02:52]} 6. Re1 {[%clk 0:02:51.5]} 6... d5 {[%clk
0:02:51.2]} 7. Bxd5 {[%clk 0:02:52.1]} 7... Qxd5 {[%clk 0:02:51.4]} 8. Nc3
{[%clk 0:02:52.7]} 8... Qd7 {[%clk 0:02:50.1]} 9. Nxe4 {[%clk 0:02:41.5]} 9...
Be7 {[%clk 0:02:49.9]} 10. Bg5 {[%clk 0:02:41.5]} 10... O-O {[%clk 0:02:48.2]}
11. Bxe7 {[%clk 0:02:41.4]} 11... Qxe7 {[%clk 0:02:48.3]} 12. Nxd4 {[%clk
0:02:34]} 12... Bd7 {[%clk 0:02:48.3]} 13. Nb5 {[%clk 0:02:12.3]} 13... Rad8
{[%clk 0:02:48.2]} 14. Qe2 {[%clk 0:02:08.4]} 14... Bc8 {[%clk 0:02:38.7]} 15.
Rad1 {[%clk 0:02:06]} 15... a6 {[%clk 0:02:35.2]} 16. Nbc3 {[%clk 0:02:02]}
16... Rxd1 {[%clk 0:02:28.7]} 17. Rxd1 {[%clk 0:02:01.6]} 17... Re8 {[%clk
0:02:27.8]} 18. Qf3 {[%clk 0:01:41.4]} 18... Be6 {[%clk 0:02:16.6]} 19. a3
{[%clk 0:01:38.5]} 19... h6 {[%clk 0:02:13.3]} 20. h3 {[%clk 0:01:35.1]} 20...
Rd8 {[%clk 0:02:10.2]} 21. Rxd8+ {[%clk 0:01:31.7]} 21... Qxd8 {[%clk
0:02:11.1]} 22. Nc5 {[%clk 0:01:30.5]} 22... Bc8 {[%clk 0:02:04]} 23. Qd5 {[%clk
0:01:23.4]} 23... Qe8 {[%clk 0:01:56.7]} 24. N5e4 {[%clk 0:01:14.4]} 24... b6
{[%clk 0:01:49.2]} 25. Qd3 {[%clk 0:00:54.3]} 25... Ne5 {[%clk 0:01:45.2]} 26.
Qg3 {[%clk 0:00:54]} 26... Kh8 {[%clk 0:01:08.9]} 27. Nd5 {[%clk 0:00:52.5]}
27... Bb7 {[%clk 0:00:58.6]} 28. Nec3 {[%clk 0:00:33.7]} 28... f6 {[%clk
0:00:37.4]} 29. Qe3 {[%clk 0:00:25.7]} 29... Qd7 {[%clk 0:00:34.6]} 30. b3
{[%clk 0:00:21.8]} 30... Bxd5 {[%clk 0:00:33.8]} 31. Qd4 {[%clk 0:00:21.3]}
31... Be6 {[%clk 0:00:33.6]} 0-1

[Event "*** Titled Tuesday Blitz"]
[Site "Chess.com"]
[Date "2020.05.19"]
[Round "10"]
[White "ajdemipopushi"]
[Black "THE_PLAYER6"]
[Result "1-0"]
[WhiteElo "2335"]
[BlackElo "2499"]
[TimeControl "180+1"]
[EndTime "13:56:05 PDT"]
[Termination "ajdemipopushi won by resignation"]

1. Nf3 {[%clk 0:03:00.9]} 1... d5 {[%clk 0:02:58.3]} 2. g3 {[%clk 0:03:01.3]}
2... Nf6 {[%clk 0:02:57.2]} 3. c4 {[%clk 0:03:01.5]} 3... e6 {[%clk 0:02:54.7]}
4. Bg2 {[%clk 0:03:01.8]} 4... dxc4 {[%clk 0:02:48.2]} 5. Na3 {[%clk 0:03:01.4]}
5... Be7 {[%clk 0:02:42.7]} 6. Nxc4 {[%clk 0:02:59.8]} 6... c5 {[%clk
0:02:42.7]} 7. O-O {[%clk 0:02:59.3]} 7... Nc6 {[%clk 0:02:42.3]} 8. b3 {[%clk
0:02:55.7]} 8... O-O {[%clk 0:02:42]} 9. Bb2 {[%clk 0:02:55.5]} 9... b5 {[%clk
0:02:41.8]} 10. Nfe5 {[%clk 0:02:50.1]} 10... Nxe5 {[%clk 0:02:20.9]} 11. Bxa8
{[%clk 0:02:30.9]} 11... Ng6 {[%clk 0:01:55.8]} 12. Ne5 {[%clk 0:02:14.4]} 12...
Qc7 {[%clk 0:01:54.5]} 13. Nxg6 {[%clk 0:02:09.1]} 13... hxg6 {[%clk 0:01:55.4]}
14. Bg2 {[%clk 0:02:07.3]} 14... Rd8 {[%clk 0:01:53.2]} 15. d3 {[%clk
0:02:04.6]} 15... Bb7 {[%clk 0:01:43.5]} 16. Bxb7 {[%clk 0:01:33.3]} 16... Qxb7
{[%clk 0:01:44.4]} 17. Bxf6 {[%clk 0:01:32.6]} 17... Bxf6 {[%clk 0:01:39.9]} 18.
Rc1 {[%clk 0:01:32.9]} 18... Qd5 {[%clk 0:01:34.1]} 19. Qc2 {[%clk 0:01:27.9]}
19... Rc8 {[%clk 0:01:30.3]} 20. Rfd1 {[%clk 0:01:21.7]} 20... a5 {[%clk
0:01:22.3]} 21. a4 {[%clk 0:00:55.9]} 21... b4 {[%clk 0:01:19.6]} 22. d4 {[%clk
0:00:51.5]} 22... Qh5 {[%clk 0:00:59.9]} 23. dxc5 {[%clk 0:00:47.8]} 23... Bc3
{[%clk 0:01:00.3]} 24. Qe4 {[%clk 0:00:36.3]} 24... Qxc5 {[%clk 0:00:57.7]} 25.
Rd7 {[%clk 0:00:27.5]} 25... Qg5 {[%clk 0:00:49.5]} 26. Rcd1 {[%clk 0:00:25.2]}
26... Qf6 {[%clk 0:00:45.9]} 27. R1d3 {[%clk 0:00:23.8]} 27... Qf5 {[%clk
0:00:37.7]} 28. Qxf5 {[%clk 0:00:19.3]} 28... gxf5 {[%clk 0:00:37.5]} 29. Rd8+
{[%clk 0:00:18.9]} 29... Rxd8 {[%clk 0:00:36]} 30. Rxd8+ {[%clk 0:00:18.9]}
30... Kh7 {[%clk 0:00:36.5]} 31. Ra8 {[%clk 0:00:19.5]} 1-0

[Event "*** Titled Tuesday Blitz"]
[Site "Chess.com"]
[Date "2020.05.19"]
[Round "10"]
[White "Gareth-Bale11"]
[Black "FedaMaster"]
[Result "1-0"]
[WhiteElo "2706"]
[BlackElo "2539"]
[TimeControl "180+1"]
[EndTime "13:56:06 PDT"]
[Termination "Gareth-Bale11 won by resignation"]

1. e4 {[%clk 0:03:00.9]} 1... d5 {[%clk 0:02:56.4]} 2. d3 {[%clk 0:02:55.7]}
2... e5 {[%clk 0:02:36.7]} 3. Nf3 {[%clk 0:02:54.2]} 3... Nc6 {[%clk 0:02:24.5]}
4. Nbd2 {[%clk 0:02:51.9]} 4... Nf6 {[%clk 0:02:23.7]} 5. g3 {[%clk 0:02:50.7]}
5... Bc5 {[%clk 0:02:20]} 6. Bg2 {[%clk 0:02:49.4]} 6... dxe4 {[%clk 0:02:19.1]}
7. dxe4 {[%clk 0:02:48.2]} 7... Qe7 {[%clk 0:01:59.5]} 8. c3 {[%clk 0:02:43.1]}
8... a5 {[%clk 0:01:57.2]} 9. Qe2 {[%clk 0:02:35.6]} 9... O-O {[%clk 0:01:50.7]}
10. h3 {[%clk 0:02:29.8]} 10... b6 {[%clk 0:01:42.8]} 11. a4 {[%clk 0:02:26.3]}
11... Ba6 {[%clk 0:01:38.9]} 12. Nc4 {[%clk 0:02:26.1]} 12... Ne8 {[%clk
0:01:34.3]} 13. O-O {[%clk 0:02:21.1]} 13... Nd6 {[%clk 0:01:29.4]} 14. Nfd2
{[%clk 0:02:20.8]} 14... Qe6 {[%clk 0:01:29.1]} 15. b3 {[%clk 0:02:20.6]} 15...
Nxc4 {[%clk 0:01:14.3]} 16. Nxc4 {[%clk 0:02:19]} 16... Bxc4 {[%clk 0:01:13.5]}
17. bxc4 {[%clk 0:02:13.5]} 17... Rad8 {[%clk 0:01:10.5]} 18. h4 {[%clk
0:02:13.6]} 18... Ne7 {[%clk 0:01:04.2]} 19. Kh2 {[%clk 0:02:11.7]} 19... Nc8
{[%clk 0:00:53.7]} 20. h5 {[%clk 0:02:01.6]} 20... Nd6 {[%clk 0:00:49.5]} 21. h6
{[%clk 0:01:50.5]} 21... g6 {[%clk 0:00:45.1]} 22. Qf3 {[%clk 0:01:45]} 22...
Nxc4 {[%clk 0:00:39.8]} 23. Bh3 {[%clk 0:01:38.3]} 23... Qe7 {[%clk 0:00:30.5]}
24. Ra2 {[%clk 0:01:28.6]} 24... Nd6 {[%clk 0:00:28.3]} 25. Rd2 {[%clk
0:01:27.8]} 25... Nc4 {[%clk 0:00:28.1]} 26. Rxd8 {[%clk 0:01:17.4]} 26... Rxd8
{[%clk 0:00:29]} 27. Qg4 {[%clk 0:01:18.2]} 27... Nd6 {[%clk 0:00:13.3]} 28. Bg5
{[%clk 0:01:16.9]} 28... f6 {[%clk 0:00:11.9]} 29. Qe6+ {[%clk 0:01:16.9]} 29...
Nf7 {[%clk 0:00:09.9]} 30. Bxf6 {[%clk 0:01:05.4]} 30... Qxe6 {[%clk 0:00:10]}
31. Bxe6 {[%clk 0:01:06]} 31... Rd6 {[%clk 0:00:09.6]} 32. Bxf7+ {[%clk
0:01:04.1]} 32... Kxf7 {[%clk 0:00:10.5]} 33. Bxe5 {[%clk 0:01:05]} 33... Rd2
{[%clk 0:00:10.7]} 34. Bxc7 {[%clk 0:01:04.8]} 34... Bxf2 {[%clk 0:00:09.8]} 35.
Kg2 {[%clk 0:01:03.3]} 35... Ke6 {[%clk 0:00:08.5]} 36. Rxf2 {[%clk 0:01:03.5]}
36... Rd7 {[%clk 0:00:06.2]} 37. Bxb6 {[%clk 0:01:03.3]} 1-0

[Event "*** Titled Tuesday Blitz"]
[Site "Chess.com"]
[Date "2020.05.19"]
[Round "10"]
[White "Kislov_Oleg"]
[Black "AlanZhang"]
[Result "1-0"]
[WhiteElo "2368"]
[BlackElo "2226"]
[TimeControl "180+1"]
[EndTime "13:56:08 PDT"]
[Termination "Kislov_Oleg won by checkmate"]

1. e4 {[%clk 0:03:00.9]} 1... e5 {[%clk 0:03:00.2]} 2. Nf3 {[%clk 0:03:00.5]}
2... Nc6 {[%clk 0:03:00.7]} 3. d4 {[%clk 0:03:00.5]} 3... exd4 {[%clk
0:03:00.2]} 4. Nxd4 {[%clk 0:03:01.4]} 4... Bc5 {[%clk 0:03:00.1]} 5. Be3 {[%clk
0:03:01]} 5... Qf6 {[%clk 0:02:57.4]} 6. c3 {[%clk 0:03:01.2]} 6... b6 {[%clk
0:02:55.7]} 7. Bc4 {[%clk 0:02:53.7]} 7... Bb7 {[%clk 0:02:55.2]} 8. O-O {[%clk
0:02:49.9]} 8... O-O-O {[%clk 0:02:54.6]} 9. b4 {[%clk 0:02:28.3]} 9... Bxd4
{[%clk 0:02:52.7]} 10. cxd4 {[%clk 0:02:24.8]} 10... Nxb4 {[%clk 0:02:43.9]} 11.
d5 {[%clk 0:02:06]} 11... Na6 {[%clk 0:01:17.4]} 12. Bd4 {[%clk 0:01:59.2]}
12... Qg6 {[%clk 0:01:16.6]} 13. Qa4 {[%clk 0:01:36.8]} 13... Nc5 {[%clk
0:00:44.8]} 14. Bxc5 {[%clk 0:01:34.2]} 14... bxc5 {[%clk 0:00:45.7]} 15. Qxa7
{[%clk 0:01:29.2]} 15... Qb6 {[%clk 0:00:42.2]} 16. Qa4 {[%clk 0:01:17.1]} 16...
Nf6 {[%clk 0:00:20.4]} 17. Nd2 {[%clk 0:01:14.7]} 17... Qb4 {[%clk 0:00:19]} 18.
Qc2 {[%clk 0:01:13.9]} 18... d6 {[%clk 0:00:04]} 19. Rfb1 {[%clk 0:01:12.1]}
19... Qa5 {[%clk 0:00:04.1]} 20. Rb5 {[%clk 0:01:10]} 20... Qa3 {[%clk
0:00:03.4]} 21. Rab1 {[%clk 0:01:06.5]} 21... Ba6 {[%clk 0:00:02.3]} 22. R5b3
{[%clk 0:00:39.5]} 22... Qa5 {[%clk 0:00:01.6]} 23. Bxa6+ {[%clk 0:00:31.2]}
23... Qxa6 {[%clk 0:00:02.5]} 24. e5 {[%clk 0:00:31.7]} 24... dxe5 {[%clk
0:00:02.2]} 25. Qf5+ {[%clk 0:00:31.4]} 25... Rd7 {[%clk 0:00:01.8]} 26. Rb8#
{[%clk 0:00:32.1]} 1-0

[Event "*** Titled Tuesday Blitz"]
[Site "Chess.com"]
[Date "2020.05.19"]
[Round "10"]
[White "heartofatiger"]
[Black "Lubov_Gordyk"]
[Result "1-0"]
[WhiteElo "2481"]
[BlackElo "2610"]
[TimeControl "180+1"]
[EndTime "13:56:13 PDT"]
[Termination "heartofatiger won by resignation"]

1. Nf3 {[%clk 0:03:00.9]} 1... g6 {[%clk 0:02:59.6]} 2. c4 {[%clk 0:02:57.9]}
2... Bg7 {[%clk 0:02:59.7]} 3. g3 {[%clk 0:02:58.5]} 3... Nh6 {[%clk 0:02:58.8]}
4. Bg2 {[%clk 0:02:58.8]} 4... f6 {[%clk 0:02:59.2]} 5. O-O {[%clk 0:02:59.1]}
5... Nf7 {[%clk 0:03:00.1]} 6. d4 {[%clk 0:02:59.2]} 6... O-O {[%clk 0:03:01]}
7. Nc3 {[%clk 0:02:59.5]} 7... c6 {[%clk 0:03:01.6]} 8. e4 {[%clk 0:02:59.3]}
8... e5 {[%clk 0:03:01.8]} 9. Be3 {[%clk 0:02:58.1]} 9... d6 {[%clk 0:03:01.5]}
10. Qd2 {[%clk 0:02:58]} 10... Qe7 {[%clk 0:03:01.3]} 11. Rad1 {[%clk
0:02:57.2]} 11... Na6 {[%clk 0:03:01.3]} 12. Rfe1 {[%clk 0:02:57]} 12... Re8
{[%clk 0:03:00.3]} 13. a3 {[%clk 0:02:55.5]} 13... Be6 {[%clk 0:02:56.4]} 14. d5
{[%clk 0:02:47.9]} 14... Bg4 {[%clk 0:02:56]} 15. dxc6 {[%clk 0:02:43.2]} 15...
bxc6 {[%clk 0:02:55.5]} 16. b4 {[%clk 0:02:43.1]} 16... Be6 {[%clk 0:02:48]} 17.
b5 {[%clk 0:02:40.8]} 17... cxb5 {[%clk 0:02:46.9]} 18. cxb5 {[%clk 0:02:40.4]}
18... Nc7 {[%clk 0:02:44.4]} 19. a4 {[%clk 0:02:36.1]} 19... Red8 {[%clk
0:02:43.6]} 20. Qb2 {[%clk 0:02:17.5]} 20... Bh6 {[%clk 0:02:28]} 21. Bxh6
{[%clk 0:02:14.3]} 21... Nxh6 {[%clk 0:02:28]} 22. Nd2 {[%clk 0:02:13.6]} 22...
Rab8 {[%clk 0:02:25.2]} 23. Nf1 {[%clk 0:01:59.2]} 23... Nf7 {[%clk 0:02:17.6]}
24. Ne3 {[%clk 0:01:58.7]} 24... Rb7 {[%clk 0:02:17.1]} 25. Bf1 {[%clk
0:01:50.9]} 25... Rdb8 {[%clk 0:02:11.2]} 26. Qa3 {[%clk 0:01:47.8]} 26... f5
{[%clk 0:02:04]} 27. exf5 {[%clk 0:01:39.5]} 27... gxf5 {[%clk 0:02:03.5]} 28.
Nc4 {[%clk 0:01:26.6]} 28... Bxc4 {[%clk 0:01:38.6]} 29. Bxc4 {[%clk 0:01:25.9]}
29... Ne6 {[%clk 0:01:38.7]} 30. Nd5 {[%clk 0:01:17.5]} 30... Qg5 {[%clk
0:01:34.2]} 31. f4 {[%clk 0:01:06.9]} 31... Qd8 {[%clk 0:01:28.5]} 32. Ne3
{[%clk 0:01:02.8]} 32... Nd4 {[%clk 0:01:25]} 33. Rxd4 {[%clk 0:00:47.9]} 33...
exd4 {[%clk 0:01:24.8]} 34. Nxf5 {[%clk 0:00:48.1]} 34... Kh8 {[%clk 0:01:11.4]}
35. Qd3 {[%clk 0:00:35.8]} 35... Qf6 {[%clk 0:01:09.6]} 36. Re6 {[%clk
0:00:34.6]} 36... Qd8 {[%clk 0:00:53.3]} 37. Qxd4+ {[%clk 0:00:32.8]} 37... Ne5
{[%clk 0:00:51.8]} 38. Rxe5 {[%clk 0:00:29.8]} 38... Qb6 {[%clk 0:00:49.6]} 39.
Rc5+ {[%clk 0:00:26.2]} 1-0

[Event "*** Titled Tuesday Blitz"]
[Site "Chess.com"]
[Date "2020.05.19"]
[Round "10"]
[White "Bubi6"]
[Black "JozefKneht"]
[Result "0-1"]
[WhiteElo "2588"]
[BlackElo "2527"]
[TimeControl "180+1"]
[EndTime "13:56:16 PDT"]
[Termination "JozefKneht won on time"]

1. e4 {[%clk 0:03:00.9]} 1... e5 {[%clk 0:02:59.3]} 2. Nf3 {[%clk 0:03:00.5]}
2... Nc6 {[%clk 0:02:59.7]} 3. Bb5 {[%clk 0:03:00.2]} 3... a6 {[%clk 0:03:00.2]}
4. Ba4 {[%clk 0:03:00.6]} 4... Nf6 {[%clk 0:03:00.6]} 5. d4 {[%clk 0:03:00.3]}
5... exd4 {[%clk 0:02:58.4]} 6. O-O {[%clk 0:03:00.1]} 6... Be7 {[%clk
0:02:57.1]} 7. e5 {[%clk 0:02:59.9]} 7... Ne4 {[%clk 0:02:56.6]} 8. Nxd4 {[%clk
0:02:58.8]} 8... O-O {[%clk 0:02:54.1]} 9. Nf5 {[%clk 0:02:55.8]} 9... d5 {[%clk
0:02:54]} 10. Bxc6 {[%clk 0:02:53.9]} 10... bxc6 {[%clk 0:02:54.9]} 11. Nxe7+
{[%clk 0:02:53.8]} 11... Qxe7 {[%clk 0:02:55.4]} 12. Re1 {[%clk 0:02:42.9]}
12... Qh4 {[%clk 0:02:45]} 13. Be3 {[%clk 0:02:35.1]} 13... f6 {[%clk
0:02:40.7]} 14. exf6 {[%clk 0:02:26.2]} 14... Qxf6 {[%clk 0:02:29.7]} 15. Qd4
{[%clk 0:01:54.2]} 15... Qg6 {[%clk 0:02:28.6]} 16. Nd2 {[%clk 0:01:49]} 16...
Bh3 {[%clk 0:02:27.2]} 17. g3 {[%clk 0:01:48.9]} 17... Rae8 {[%clk 0:02:08.5]}
18. Qd3 {[%clk 0:01:47.4]} 18... Nxd2 {[%clk 0:02:02.3]} 19. Qxd2 {[%clk
0:01:41.6]} 19... Bf5 {[%clk 0:01:48.2]} 20. Bc5 {[%clk 0:01:36.3]} 20... Be4
{[%clk 0:01:37.4]} 21. Bxf8 {[%clk 0:01:34.6]} 21... Rxf8 {[%clk 0:01:37.4]} 22.
Re3 {[%clk 0:01:31]} 22... Bxc2 {[%clk 0:01:32]} 23. f3 {[%clk 0:01:26.6]} 23...
h5 {[%clk 0:01:23]} 24. Qd4 {[%clk 0:01:19]} 24... Bf5 {[%clk 0:01:13.4]} 25.
Rae1 {[%clk 0:01:16.9]} 25... Bh3 {[%clk 0:01:03.3]} 26. b4 {[%clk 0:01:12.1]}
26... Qc2 {[%clk 0:01:00.7]} 27. R3e2 {[%clk 0:01:11.3]} 27... Qf5 {[%clk
0:00:58]} 28. Rf2 {[%clk 0:00:53.8]} 28... Qg6 {[%clk 0:00:57.4]} 29. a3 {[%clk
0:00:51.4]} 29... Rf6 {[%clk 0:00:49.1]} 30. Rfe2 {[%clk 0:00:49]} 30... Rxf3
{[%clk 0:00:46.1]} 31. Qh4 {[%clk 0:00:36.2]} 31... Qf5 {[%clk 0:00:42.4]} 0-1

[Event "*** Titled Tuesday Blitz"]
[Site "Chess.com"]
[Date "2020.05.19"]
[Round "10"]
[White "Onischuk_V"]
[Black "Tapuah"]
[Result "1/2-1/2"]
[WhiteElo "2894"]
[BlackElo "2815"]
[TimeControl "180+1"]
[EndTime "13:56:17 PDT"]
[Termination "Game drawn by repetition"]

1. e4 {[%clk 0:03:00.4]} 1... c5 {[%clk 0:02:58.6]} 2. Nf3 {[%clk 0:03:00.6]}
2... e6 {[%clk 0:02:58.9]} 3. b3 {[%clk 0:03:00.5]} 3... Nf6 {[%clk 0:02:57.4]}
4. e5 {[%clk 0:03:00.4]} 4... Nd5 {[%clk 0:02:57.8]} 5. Bb2 {[%clk 0:03:01.1]}
5... Nc6 {[%clk 0:02:58]} 6. g3 {[%clk 0:03:01.4]} 6... Be7 {[%clk 0:02:52.8]}
7. Bg2 {[%clk 0:03:00.7]} 7... f6 {[%clk 0:02:51]} 8. c4 {[%clk 0:02:58]} 8...
Ndb4 {[%clk 0:02:50.1]} 9. d4 {[%clk 0:02:56.2]} 9... cxd4 {[%clk 0:02:47.2]}
10. a3 {[%clk 0:02:54.5]} 10... Na6 {[%clk 0:02:46.2]} 11. exf6 {[%clk 0:02:49]}
11... Bxf6 {[%clk 0:02:45.3]} 12. b4 {[%clk 0:02:44.3]} 12... Nc7 {[%clk
0:02:36.6]} 13. O-O {[%clk 0:02:39.8]} 13... O-O {[%clk 0:02:35.8]} 14. Nxd4
{[%clk 0:02:31.1]} 14... d5 {[%clk 0:02:28.6]} 15. Nxc6 {[%clk 0:02:22.2]} 15...
bxc6 {[%clk 0:02:28.1]} 16. Qc2 {[%clk 0:02:15.8]} 16... Bxb2 {[%clk 0:02:08]}
17. Qxb2 {[%clk 0:02:15.6]} 17... Ba6 {[%clk 0:02:08.5]} 18. Nd2 {[%clk
0:02:15.7]} 18... dxc4 {[%clk 0:02:04.3]} 19. Rac1 {[%clk 0:02:15.3]} 19... c3
{[%clk 0:02:02]} 20. Qxc3 {[%clk 0:02:10]} 20... Bxf1 {[%clk 0:02:01.6]} 21.
Nxf1 {[%clk 0:02:02.2]} 21... Nd5 {[%clk 0:01:30]} 22. Qxc6 {[%clk 0:01:56.4]}
22... Qf6 {[%clk 0:01:30.3]} 23. Rc2 {[%clk 0:01:56.5]} 23... Rad8 {[%clk
0:01:15]} 24. Re2 {[%clk 0:01:50.7]} 24... Nc3 {[%clk 0:01:06.7]} 25. Rc2 {[%clk
0:01:50.2]} 25... Rc8 {[%clk 0:01:00]} 26. Qa6 {[%clk 0:01:49.7]} 26... Rc7
{[%clk 0:00:57.3]} 27. h4 {[%clk 0:01:48.2]} 27... Kh8 {[%clk 0:00:53.1]} 28.
Ne3 {[%clk 0:01:27.5]} 28... Ne4 {[%clk 0:00:41.9]} 29. Rxc7 {[%clk 0:00:44.8]}
29... Qxf2+ {[%clk 0:00:40.8]} 30. Kh1 {[%clk 0:00:45.4]} 30... Qxg3 {[%clk
0:00:24.8]} 31. Rc8 {[%clk 0:00:41.5]} 31... Qxh4+ {[%clk 0:00:14.4]} 32. Kg1
{[%clk 0:00:41.4]} 32... Qf2+ {[%clk 0:00:14]} 33. Kh1 {[%clk 0:00:40.4]} 33...
Qh4+ {[%clk 0:00:11]} 34. Kg1 {[%clk 0:00:40.8]} 34... Qf2+ {[%clk 0:00:11.1]}
35. Kh1 {[%clk 0:00:41.1]} 35... Qh4+ {[%clk 0:00:10.8]} 1/2-1/2

[Event "*** Titled Tuesday Blitz"]
[Site "Chess.com"]
[Date "2020.05.19"]
[Round "10"]
[White "Majesth"]
[Black "BeanScreen"]
[Result "1-0"]
[WhiteElo "2468"]
[BlackElo "2593"]
[TimeControl "180+1"]
[EndTime "13:56:19 PDT"]
[Termination "Majesth won by checkmate"]

1. d4 {[%clk 0:03:00.9]} 1... d5 {[%clk 0:03:00.1]} 2. Bg5 {[%clk 0:03:00.1]}
2... Nf6 {[%clk 0:02:59.1]} 3. e3 {[%clk 0:02:59.5]} 3... Bf5 {[%clk 0:02:56.8]}
4. c4 {[%clk 0:02:58.5]} 4... c6 {[%clk 0:02:56.4]} 5. Bxf6 {[%clk 0:02:53.3]}
5... exf6 {[%clk 0:02:56.2]} 6. Qb3 {[%clk 0:02:47.9]} 6... Bxb1 {[%clk
0:02:48.2]} 7. Rxb1 {[%clk 0:02:48.8]} 7... Qa5+ {[%clk 0:02:48.1]} 8. Kd1
{[%clk 0:02:43.7]} 8... Nd7 {[%clk 0:02:44]} 9. cxd5 {[%clk 0:02:35.6]} 9...
cxd5 {[%clk 0:02:25.3]} 10. Bb5 {[%clk 0:02:32.8]} 10... Rd8 {[%clk 0:02:24.5]}
11. Qxd5 {[%clk 0:02:20.9]} 11... Qb6 {[%clk 0:02:19.7]} 12. Ne2 {[%clk
0:02:16.3]} 12... Be7 {[%clk 0:02:18]} 13. Nc3 {[%clk 0:01:55.1]} 13... a6
{[%clk 0:02:10.6]} 14. Ba4 {[%clk 0:01:46.6]} 14... Qa7 {[%clk 0:02:10.2]} 15.
Ke2 {[%clk 0:01:35.1]} 15... b5 {[%clk 0:02:09.8]} 16. Bb3 {[%clk 0:01:34.6]}
16... O-O {[%clk 0:02:05.3]} 17. Qf3 {[%clk 0:01:20.7]} 17... Qb8 {[%clk
0:01:54.4]} 18. g3 {[%clk 0:01:18.1]} 18... b4 {[%clk 0:01:54.1]} 19. Nd5 {[%clk
0:01:17.5]} 19... Qb5+ {[%clk 0:01:53.6]} 20. Ke1 {[%clk 0:01:14.2]} 20... Rfe8
{[%clk 0:01:53]} 21. Nc7 {[%clk 0:01:04.7]} 21... Qb6 {[%clk 0:01:15.1]} 22.
Nxe8 {[%clk 0:01:02.9]} 22... Rxe8 {[%clk 0:01:16]} 23. Qd5 {[%clk 0:00:58]}
23... Qd8 {[%clk 0:01:05.7]} 24. Qxf7+ {[%clk 0:00:54.6]} 24... Kh8 {[%clk
0:01:06.2]} 25. Ke2 {[%clk 0:00:49.8]} 25... Nf8 {[%clk 0:00:57.9]} 26. Rhc1
{[%clk 0:00:45.6]} 26... Ng6 {[%clk 0:00:56.4]} 27. Qd5 {[%clk 0:00:39.9]} 27...
Qb8 {[%clk 0:00:49.6]} 28. Rc6 {[%clk 0:00:36.9]} 28... Rd8 {[%clk 0:00:44.2]}
29. Qc4 {[%clk 0:00:33.4]} 29... Qb7 {[%clk 0:00:42.9]} 30. Rc1 {[%clk 0:00:32]}
30... Qd7 {[%clk 0:00:42.4]} 31. Rc8 {[%clk 0:00:29.5]} 31... Qg4+ {[%clk
0:00:41.9]} 32. f3 {[%clk 0:00:27.1]} 32... Qh3 {[%clk 0:00:26.5]} 33. Rxd8+
{[%clk 0:00:25.1]} 33... Bxd8 {[%clk 0:00:27.4]} 34. Qg8# {[%clk 0:00:24.8]} 1-0

[Event "*** Titled Tuesday Blitz"]
[Site "Chess.com"]
[Date "2020.05.19"]
[Round "10"]
[White "mortngabriel"]
[Black "Korchmar_Vasiliy"]
[Result "0-1"]
[WhiteElo "2450"]
[BlackElo "2606"]
[TimeControl "180+1"]
[EndTime "13:56:19 PDT"]
[Termination "Korchmar_Vasiliy won on time"]

1. Nf3 {[%clk 0:03:00.9]} 1... d5 {[%clk 0:02:59.8]} 2. e3 {[%clk 0:02:58.9]}
2... Nf6 {[%clk 0:02:57.5]} 3. c4 {[%clk 0:02:59]} 3... e6 {[%clk 0:02:56.2]} 4.
Nc3 {[%clk 0:02:58.6]} 4... b6 {[%clk 0:02:52.8]} 5. cxd5 {[%clk 0:02:57.1]}
5... exd5 {[%clk 0:02:53.7]} 6. d4 {[%clk 0:02:57.5]} 6... Bb7 {[%clk
0:02:53.4]} 7. Bd3 {[%clk 0:02:54.9]} 7... a6 {[%clk 0:02:51.7]} 8. O-O {[%clk
0:02:54]} 8... Bd6 {[%clk 0:02:52.4]} 9. Ne5 {[%clk 0:02:49.7]} 9... O-O {[%clk
0:02:50.3]} 10. f4 {[%clk 0:02:49.2]} 10... c5 {[%clk 0:02:33.8]} 11. Bd2 {[%clk
0:02:21.1]} 11... Nc6 {[%clk 0:02:33.4]} 12. Ne2 {[%clk 0:02:18.8]} 12... Ne4
{[%clk 0:02:22.2]} 13. Rc1 {[%clk 0:02:05.4]} 13... f6 {[%clk 0:02:20.3]} 14.
Nxc6 {[%clk 0:02:02.1]} 14... Bxc6 {[%clk 0:02:19.3]} 15. Bxe4 {[%clk
0:01:43.8]} 15... dxe4 {[%clk 0:02:19.4]} 16. Ng3 {[%clk 0:01:31.6]} 16... Bb5
{[%clk 0:02:16.8]} 17. Nxe4 {[%clk 0:01:14.4]} 17... Bxf1 {[%clk 0:02:14.3]} 18.
Qxf1 {[%clk 0:00:55.1]} 18... cxd4 {[%clk 0:02:13.5]} 19. Qc4+ {[%clk
0:00:52.8]} 19... Kh8 {[%clk 0:02:13.2]} 20. Qxd4 {[%clk 0:00:49.9]} 20... Bc5
{[%clk 0:01:53.7]} 21. Nxc5 {[%clk 0:00:49.2]} 21... bxc5 {[%clk 0:01:52.2]} 22.
Rxc5 {[%clk 0:00:50.1]} 22... Qb6 {[%clk 0:01:42.1]} 23. Bc3 {[%clk 0:00:44.4]}
23... Rad8 {[%clk 0:01:39.4]} 24. Rd5 {[%clk 0:00:28.4]} 24... Qc7 {[%clk
0:01:22.2]} 25. g3 {[%clk 0:00:19.1]} 25... Rxd5 {[%clk 0:01:20.8]} 26. Qxd5
{[%clk 0:00:20]} 26... Rd8 {[%clk 0:01:21.4]} 27. Qe4 {[%clk 0:00:18.1]} 27...
Qd7 {[%clk 0:01:10.2]} 28. Kg2 {[%clk 0:00:15.4]} 28... Qd1 {[%clk 0:01:04.8]}
29. Qf3 {[%clk 0:00:10.6]} 29... Qc2+ {[%clk 0:01:00.2]} 30. Qf2 {[%clk
0:00:08.9]} 30... Qe4+ {[%clk 0:00:56.3]} 31. Qf3 {[%clk 0:00:08.9]} 31... Qc2+
{[%clk 0:00:56.9]} 32. Qf2 {[%clk 0:00:08.5]} 32... Qb1 {[%clk 0:00:57.8]} 33.
a3 {[%clk 0:00:08]} 33... Rd1 {[%clk 0:00:54.8]} 34. g4 {[%clk 0:00:07.7]} 34...
Qe4+ {[%clk 0:00:53.4]} 35. Kg3 {[%clk 0:00:04.1]} 35... Rd3 {[%clk 0:00:54]}
36. Bd4 {[%clk 0:00:02.5]} 36... Qxd4 {[%clk 0:00:53.8]} 0-1